bitfinex/quotes_ETHUSD_20240618
["timestamp","ask_amount","ask_price","bid_price","bid_amount"]
[1718717879142,0.890053,3389.4,3388.2,0.05902298]
[1718717880229,3.840443,3389.4,3388.1,2.96274]
[1718717880399,0.6840263,3389.3,3388.1,2.6934]
[1718717880596,5.95025,3389.6,3388.2,0.05902203]
[1718717880597,3.0,3389.6,3388.2,0.05902203]
[1718717881335,2.95061,3389.2,3388.1,2.6934]
[1718717881627,2.95048,3389.3,3388.1,2.6934]
[1718717881827,2.95048,3389.3,3388.1,3.26274]
[1718717882030,2.95039,3389.4,3388.1,3.26274]
[1718717882937,2.95047,3389.3,3388.1,3.26274]
[1718717883236,2.95096,3388.8,3387.8,3.0]
[1718717883436,2.95096,3388.8,3387.7,3.0]
[1718717883744,2.95081,3388.9,3387.7,3.0]
[1718717883963,2.95091,3388.8,3387.7,3.0]
[1718717884101,2.95146,3388.2,3386.9,2.7843]
[1718717884309,2.95115,3388.5,3386.9,2.7843]
[1718717884527,0.295115,3388.4,3387.0,3.30718342]
[1718717885405,3.246375,3388.4,3387.0,3.30718342]
[1718717885649,3.246375,3388.4,3387.0,0.30718342]
[1718717885965,3.246375,3388.4,3386.9,2.7843]
[1718717885966,2.95166,3388.0,3386.9,2.7843]
[1718717886107,2.9515,3388.1,3386.9,2.7843]
[1718717886108,2.95185,3387.7,3386.9,2.7843]
[1718717886301,2.95177,3387.8,3386.9,2.7843]
[1718717886517,2.95177,3387.8,3386.2,4.5697]
[1718717887521,2.95225,3387.3,3386.2,2.7927]
[1718717887703,2.95204,3387.5,3386.2,2.7927]
[1718717887903,2.95228,3387.3,3386.2,2.7927]
[1718717888139,2.95213,3387.4,3386.2,2.7927]
[1718717888304,2.95203,3387.5,3386.2,2.7927]
[1718717888508,0.910294,3387.8,3386.3,2.1153255]
[1718717888705,1.205444,3388.0,3386.3,2.05627]
[1718717889006,1.21372534,3388.2,3386.3,2.05627]
[1718717889007,0.910294,3388.2,3386.6,2.848]
[1718717889202,2.95168,3387.9,3386.6,2.848]
[1718717889403,0.03,3387.8,3386.6,2.848]
[1718717889830,0.03,3387.8,3386.7,3.0]
[1718717890028,0.910294,3388.1,3386.8,0.64384864]
[1718717890349,0.03,3388.0,3386.9,3.2868]
[1718717890521,0.07379771,3388.3,3387.0,3.0]
[1718717890723,0.07379772,3388.2,3387.1,1.287302]
[1718717891233,0.910294,3389.0,3387.8,2.848]
[1718717891422,0.07377567,3389.1,3387.9,3.60902053]
[1718717891725,1.21372534,3389.4,3387.9,5.38602053]
[1718717891726,0.910294,3389.4,3387.9,5.38602053]
[1718717892026,0.07376342,3389.5,3388.3,4.625]
[1718717892227,0.07376479,3389.8,3388.4,5.84851183]
[1718717892432,2.9502,3389.6,3388.4,3.4625]
[1718717892634,2.21900376,3389.5,3388.5,3.0]
[1718717892852,0.07377594,3389.5,3388.5,3.0]
[1718717893005,0.910294,3389.8,3388.6,3.45701918]
[1718717893339,0.07375825,3389.7,3388.7,3.0]
[1718717893505,0.910294,3390.0,3388.7,3.0]
[1718717893506,0.07376354,3389.9,3388.7,3.0]
[1718717893718,0.21977829,3389.8,3388.8,0.05901066]
[1718717894011,0.07375745,3389.8,3388.9,0.55]
[1718717894131,0.07375745,3389.8,3389.0,0.05900656]
[1718717894554,0.07375818,3390.1,3389.0,0.05900656]
[1718717894764,1.49140411,3390.1,3388.9,0.55]
[1718717894916,1.49140411,3390.1,3388.7,3.0]
[1718717895122,2.14498715,3390.0,3388.8,0.05900956]
[1718717895418,0.07375819,3389.9,3388.9,1.04992096]
[1718717895649,0.07375819,3389.9,3388.7,3.0]
[1718717895650,3.02371819,3389.9,3388.7,3.0]
[1718717895860,3.05541821,3389.8,3388.7,3.0]
[1718717896072,0.07376976,3389.7,3388.7,3.0]
[1718717896360,0.07376632,3389.8,3388.8,0.05901306]
[1718717896514,0.07376632,3389.6,3388.8,0.05901497]
[1718717896716,0.25681358,3389.7,3388.8,0.05901497]
[1718717896717,0.33058229,3389.7,3388.8,0.05901497]
[1718717896973,0.910294,3390.0,3388.8,0.05901497]
[1718717897125,4.481,3390.7,3389.4,2.8043]
[1718717897126,0.910294,3390.5,3389.4,2.8043]
[1718717897476,0.07374425,3390.6,3389.5,4.1742254]
[1718717898123,0.07374211,3390.9,3389.5,5.9512254]
[1718717898455,0.07374211,3390.9,3389.6,2.93735254]
[1718717898766,0.07374211,3390.9,3389.7,3.60898834]
[1718717898954,0.073736,3391.3,3389.8,2.9069888]
[1718717899125,1.03646753,3391.2,3390.0,2.2586]
[1718717899325,0.073736,3391.2,3390.1,0.05898633]
[1718717899634,0.07373249,3391.4,3390.4,2.8593]
[1718717899837,0.07373249,3391.4,3390.5,0.05898074]
[1718717900062,0.98401998,3391.8,3390.5,0.05898074]
[1718717900350,0.07372598,3391.7,3390.5,0.05898074]
[1718717900538,7.01275534,3392.1,3390.5,0.69327168]
[1718717900539,0.07372568,3391.6,3390.5,0.69327168]
[1718717900739,5.69472534,3392.2,3390.5,3.69327168]
[1718717900740,0.07371986,3392.0,3390.5,3.69327168]
[1718717901042,0.07371986,3392.0,3390.8,2.848]
[1718717901448,2.94768,3392.5,3390.8,2.848]
[1718717901449,0.07371488,3392.4,3390.9,3.6089719]
[1718717902349,0.07371488,3392.4,3391.0,2.7792]
[1718717902523,0.37584537,3392.4,3391.1,3.0]
[1718717903527,3.28324537,3392.4,3391.1,3.0]
[1718717903853,3.28324537,3392.4,3390.4,2.8673]
[1718717903854,6.09611488,3392.4,3390.4,2.8673]
[1718717904124,6.115,3392.3,3390.4,2.8673]
[1718717904231,2.94838,3391.7,3390.4,2.8673]
[1718717904436,3.61185303,3391.6,3390.4,2.8673]
[1718717904656,3.02218703,3391.6,3390.4,2.8673]
[1718717904871,2.9487,3391.4,3390.3,0.30072399]
[1718717905035,0.07373574,3391.3,3390.1,3.0]
[1718717905233,0.07373574,3391.3,3390.0,2.2586]
[1718717905234,0.07373574,3391.2,3390.0,2.2586]
[1718717905449,2.94901,3391.0,3389.9,2.98075914]
[1718717905683,3.02281796,3390.9,3389.9,2.98075914]
[1718717905845,3.02281796,3390.9,3389.9,0.30045914]
[1718717905846,2.94915,3390.8,3389.9,0.30045914]
[1718717906045,2.94933,3390.6,3389.3,5.5283]
[1718717906347,0.07375186,3390.5,3389.3,2.98127542]
[1718717906572,0.0737474,3390.7,3389.4,0.05899792]
[1718717906757,0.0737474,3390.7,3389.5,0.76652733]
[1718717906961,0.07374032,3391.1,3389.8,4.625]
[1718717907159,0.07374032,3391.1,3389.8,2.848]
[1718717907160,2.9489,3391.1,3389.8,2.848]
[1718717907381,2.94872,3391.3,3389.8,2.848]
[1718717907382,0.66349972,3391.0,3389.8,2.848]
[1718717907585,3.719094,3392.0,3390.3,2.848]
[1718717907894,2.94868,3391.4,3389.8,2.848]
[1718717908187,3.02200812,3391.8,3389.9,3.55]
[1718717908188,3.02245534,3391.3,3389.9,3.55]
[1718717908373,2.94828,3391.8,3389.9,5.327]
[1718717908374,0.07373533,3391.2,3389.9,5.327]
[1718717908682,0.72824432,3391.7,3390.0,0.72422353]
[1718717908855,0.72824432,3391.7,3390.1,3.2269]
[1718717909057,0.72824432,3391.7,3390.2,3.0589825]
[1718717909379,0.74128063,3391.6,3390.3,1.30409428]
[1718717909583,0.07372813,3391.5,3390.3,0.55]
[1718717909982,3.02235813,3391.5,3389.5,2.8106]
[1718717910156,2.94889,3391.1,3389.5,2.8106]
[1718717910355,0.07374031,3391.0,3389.6,3.0]
[1718717910547,3.02280031,3391.0,3389.6,3.0]
[1718717910749,2.94907,3390.9,3389.6,3.0]
[1718717910951,0.67092151,3390.8,3389.6,3.0]
[1718717911148,0.07374446,3390.7,3389.6,3.0]
[1718717911358,0.07374446,3390.7,3389.7,0.05899515]
[1718717911947,3.02264033,3391.1,3389.7,0.05899515]
[1718717912177,0.59713603,3391.0,3389.7,0.05899515]
[1718717912374,0.4418155,3391.4,3389.7,0.05899515]
[1718717912687,0.0737319,3391.3,3389.8,5.175]
[1718717912984,0.63903755,3391.3,3389.9,3.87648493]
[1718717913198,2.94847,3391.6,3390.0,0.55]
[1718717913405,0.015307,3391.5,3390.1,0.05898414]
[1718717913610,0.37560562,3391.5,3390.2,1.05163186]
[1718717913759,0.015307,3391.5,3390.2,4.05163186]
[1718717914105,0.015307,3391.9,3390.2,4.05163186]
[1718717914276,0.015307,3391.9,3390.4,4.5274]
[1718717914489,0.015307,3391.9,3390.5,3.60897401]
[1718717914856,5.89631,3392.0,3390.5,3.0]
[1718717915211,3.5546687,3391.9,3390.6,0.05898007]
[1718717915492,0.6064687,3391.9,3390.7,0.55]
[1718717915695,0.6064687,3391.9,3390.8,0.05897519]
[1718717916578,0.015307,3391.9,3390.8,0.05897519]
[1718717917084,2.848,3393.7,3391.0,1.777]
[1718717917085,0.015307,3392.5,3391.0,1.777]
[1718717917291,0.015307,3392.8,3391.4,4.625]
[1718717917455,0.015307,3393.0,3391.6,1.777]
[1718717917657,4.481,3393.5,3391.6,1.777]
[1718717917658,0.015307,3393.4,3391.9,2.848]
[1718717917911,0.015307,3393.4,3392.0,3.60895308]
[1718717918258,2.962207,3393.4,3392.0,3.60895308]
[1718717918611,0.5908997,3393.3,3392.1,0.0589531]
[1718717918795,0.015307,3393.2,3392.1,0.0589531]
[1718717919200,0.015307,3393.2,3392.0,4.19569531]
[1718717919376,0.015307,3393.2,3392.1,0.0589531]
[1718717919991,0.015307,3393.4,3392.3,2.7984]
[1718717920194,0.015307,3393.4,3392.4,0.28573531]
[1718717920605,3.015307,3393.8,3392.4,0.28573531]
[1718717920782,2.961947,3393.7,3392.4,0.28573531]
[1718717921100,0.015307,3393.7,3392.4,0.28573531]
[1718717921310,2.94699,3393.3,3392.0,3.0]
[1718717921602,0.015307,3393.2,3392.0,3.0]
[1718717921801,0.015307,3393.2,3392.1,0.5848]
[1718717922305,0.015307,3393.2,3392.0,3.0]
[1718717922507,2.87,3393.1,3391.7,3.0]
[1718717922681,2.9475,3392.8,3391.7,3.0]
[1718717922876,2.962817,3392.7,3391.6,3.07715417]
[1718717923073,2.962817,3392.7,3391.6,0.29725417]
[1718717923074,0.015307,3392.7,3391.6,0.29725417]
[1718717923282,0.015307,3392.7,3391.1,3.33589752]
[1718717923283,2.962817,3392.7,3391.1,3.33589752]
[1718717923571,0.015307,3392.7,3391.1,3.33589752]
[1718717923798,2.94779,3392.4,3391.1,3.33589752]
[1718717924005,2.94813,3392.0,3391.1,0.52339752]
[1718717924175,0.015307,3391.9,3391.0,0.28999116]
[1718717924377,0.015307,3391.9,3390.6,2.6811]
[1718717924592,0.3116397,3391.9,3390.7,0.73061]
[1718717924883,0.015307,3391.9,3390.7,0.73061]
[1718717926602,0.015307,3391.9,3390.8,0.0589748]
[1718717926803,0.015307,3391.9,3390.7,3.73061]
[1718717927007,2.9483,3391.8,3390.4,3.14325796]
[1718717927207,2.94857,3391.5,3390.4,0.29525796]
[1718717927409,0.6065317,3391.4,3390.1,3.0]
[1718717927779,2.94889,3391.1,3389.4,2.6617]
[1718717927979,2.964297,3391.0,3389.4,4.4387]
[1718717928221,2.94907,3390.9,3389.4,4.4387]
[1718717928402,0.015307,3390.8,3389.5,0.72867]
[1718717929288,2.964487,3390.8,3389.5,0.72867]
[1718717929486,0.015307,3390.7,3389.5,0.72867]
[1718717930014,2.964547,3390.7,3389.5,0.72867]
[1718717930214,2.964547,3390.7,3389.6,0.65384519]
[1718717931050,2.94942,3390.5,3389.4,2.6617]
[1718717931183,2.94959,3390.3,3389.3,0.30008189]
[1718717931491,2.964987,3390.2,3389.3,0.33000819]
[1718717931692,2.964987,3390.2,3388.9,3.0]
[1718717932079,0.015307,3390.2,3388.9,3.0]
[1718717933111,0.65319347,3390.8,3389.0,2.38600451]
[1718717933334,2.964547,3390.7,3389.2,2.848]
[1718717933480,3.66646582,3390.7,3389.3,3.5175]
[1718717933906,2.94949,3390.5,3389.3,3.5175]
[1718717934168,0.015307,3390.4,3389.3,3.5175]
[1718717934338,0.015307,3390.4,3389.4,0.63655]
[1718717934815,2.964817,3390.4,3389.4,0.63655]
[1718717935189,2.9496,3390.3,3389.4,0.63655]
[1718717935413,0.015307,3390.2,3389.4,0.63655]
[1718717935613,2.965057,3390.2,3389.4,0.63655]
[1718717935916,2.964987,3390.2,3389.4,0.63655]
[1718717936302,2.964987,3390.2,3389.3,3.5175]
[1718717936509,2.94992,3390.0,3389.3,3.5175]
[1718717936702,2.95002,3389.8,3388.8,3.02210418]
[1718717936910,2.94992,3390.0,3388.8,0.29790418]
[1718717936911,0.015307,3389.7,3388.8,0.29790418]
[1718717937218,0.015307,3389.7,3388.1,3.13505338]
[1718717937419,2.95029,3389.5,3388.2,1.05650534]
[1718717937617,0.015307,3389.4,3388.2,0.0590236]
[1718717937831,0.015307,3389.4,3388.2,0.05901811]
[1718717938029,0.015307,3389.4,3388.1,4.91205338]
[1718717938189,0.015307,3389.4,3388.2,0.77600534]
[1718717938190,2.95095,3388.8,3388.2,0.77600534]
[1718717938394,0.015307,3388.7,3388.1,0.29015338]
[1718717938588,0.015307,3388.7,3387.5,2.8529]
[1718717939090,0.015307,3388.7,3387.5,3.152707]
[1718717939327,2.95108,3388.6,3387.5,3.152707]
[1718717939506,2.966467,3388.5,3387.6,0.3152707]
[1718717939699,2.966467,3388.5,3387.5,3.152707]
[1718717940021,0.015307,3388.5,3387.5,3.152707]
[1718717940227,3.115,3389.2,3387.5,0.299807]
[1718717940385,2.95108,3388.6,3386.9,5.6506]
[1718717940590,0.015307,3388.5,3387.0,1.33766]
[1718717941013,2.966467,3388.5,3387.0,1.33766]
[1718717941205,2.95133,3388.3,3387.0,1.33766]
[1718717941406,0.015307,3388.2,3387.1,0.876526]
[1718717941617,0.015307,3388.2,3387.1,1.426526]
[1718717942225,0.015307,3388.2,3387.1,4.426526]
[1718717942423,0.015307,3388.4,3387.2,1.3191786]
[1718717942730,2.95152,3388.1,3387.2,4.3191786]
[1718717942959,2.95125,3388.4,3387.2,1.3191786]
[1718717943128,3.92243093,3389.2,3387.3,0.05904098]
[1718717943328,3.38074309,3389.1,3387.3,0.05904098]
[1718717943730,2.95125,3388.4,3387.2,1.3191786]
[1718717943935,2.95149,3388.2,3387.2,1.3191786]
[1718717944148,2.95149,3388.2,3387.3,0.43191786]
[1718717944433,2.95133,3388.3,3387.3,0.43191786]
[1718717944746,2.95155,3388.1,3387.3,0.43191786]
[1718717944950,2.95137,3388.3,3387.3,0.43191786]
[1718717945108,2.95134,3388.3,3387.3,0.43191786]
[1718717945832,2.95124,3388.4,3387.3,0.43191786]
[1718717946522,2.95134,3388.3,3387.3,0.43191786]
[1718717947616,5.6776,3389.5,3387.4,0.05904126]
[1718717947817,2.95037,3389.4,3387.6,2.691]
[1718717948144,2.95015,3389.7,3387.8,2.073]
[1718717948322,2.7273,3390.1,3387.8,2.073]
[1718717948323,2.95038,3389.4,3387.9,0.55]
[1718717948741,2.95001,3389.9,3388.0,0.05901966]
[1718717948946,2.9501,3389.8,3388.1,0.55]
[1718717949172,2.95019,3389.7,3388.1,0.55]
[1718717949316,2.9502,3389.6,3388.0,0.55]
[1718717949512,6.06497,3389.9,3387.7,3.7925026]
[1718717949513,2.95087,3388.9,3387.7,3.7925026]
[1718717949721,2.95099,3388.7,3387.7,3.0]
[1718717950228,2.95099,3388.7,3387.6,2.691]
[1718717950435,2.95082,3388.9,3387.6,2.691]
[1718717950634,0.590155,3388.8,3387.7,0.2691]
[1718717950831,0.4481,3389.2,3387.7,0.2691]
[1718717950832,3.4481,3389.2,3387.7,0.2691]
[1718717951030,3.4481,3389.2,3387.8,0.60903147]
[1718717951223,4.481,3389.3,3387.8,0.60903147]
[1718717951685,4.481,3389.3,3388.1,4.5733]
[1718717951961,3.0,3390.0,3388.2,3.6090149]
[1718717952157,3.0,3390.0,3388.3,0.05901492]
[1718717952328,6.817557,3390.0,3388.4,1.36823149]
[1718717952529,6.982707,3390.0,3388.4,0.81823149]
[1718717952750,6.982707,3390.0,3387.6,2.7229]
[1718717952751,2.95074,3389.0,3387.6,2.7229]
[1718717952949,2.95063,3389.1,3387.8,0.55]
[1718717953257,11.196707,3390.0,3387.9,0.05902661]
[1718717953258,6.06514,3389.7,3387.9,0.05902661]
[1718717953431,2.95048,3389.3,3387.9,0.05902661]
[1718717953632,2.95048,3389.3,3387.8,0.8492]
[1718717953633,2.95063,3389.1,3388.0,0.41773266]
[1718717953829,3.115,3389.7,3388.0,0.41773266]
[1718717953830,2.95023,3389.6,3388.0,0.41773266]
[1718717954175,3.0,3389.5,3388.1,0.05902663]
[1718717954378,5.95029,3389.5,3388.2,0.55]
[1718717954547,2.95037,3389.4,3388.2,0.55]
[1718717954744,2.95052,3389.3,3388.1,0.55]
[1718717954943,3.545557,3389.3,3388.1,0.55]
[1718717955357,2.95074,3389.0,3387.8,0.2992]
[1718717955575,2.9509,3388.8,3387.8,0.2992]
[1718717955787,2.9509,3388.8,3387.7,3.55869959]
[1718717955943,0.3545777,3389.0,3387.8,0.05902865]
[1718717956142,2.95064,3389.1,3387.8,0.05902865]
[1718717956450,2.95064,3389.1,3387.7,3.55869959]
[1718717956451,0.595037,3389.3,3387.7,3.55869959]
[1718717956654,0.3595037,3389.2,3387.8,0.68718745]
[1718717956883,3.0,3389.8,3387.8,2.46418745]
[1718717957189,2.95021,3389.6,3387.9,1.1889787]
[1718717957359,2.95021,3389.6,3388.0,0.55]
[1718717957678,6.06503,3389.8,3388.0,0.55]
[1718717957873,6.06503,3389.8,3387.8,3.62815996]
[1718717957874,2.95087,3388.9,3387.8,3.62815996]
[1718717958060,2.95087,3388.9,3387.9,3.0]
[1718717958266,2.95087,3388.9,3387.7,3.28959959]
[1718717958267,2.951,3388.7,3387.7,3.0]
[1718717958450,2.9509,3388.8,3387.6,2.7229]
[1718717958639,2.95131,3388.4,3387.2,3.0]
[1718717959142,2.95143,3388.2,3387.2,3.0]
[1718717959345,2.9509,3388.8,3387.2,3.0]
[1718717959346,2.95109,3388.6,3387.2,3.0]
[1718717959583,2.95126,3388.4,3387.2,3.0]
[1718717959897,0.590241,3388.3,3387.2,3.87643607]
[1718717960561,2.95091,3388.8,3387.3,0.05904108]
[1718717960763,6.24329219,3389.1,3387.3,0.05904108]
[1718717960958,4.36748722,3389.0,3387.4,1.25234771]
[1718717961170,2.95081,3388.9,3387.4,1.25234771]
[1718717961599,2.95098,3388.8,3387.4,1.25234771]
[1718717961970,3.0,3389.0,3387.5,0.05903242]
[1718717962282,3.0,3389.2,3387.6,0.55]
[1718717962514,2.95066,3389.1,3387.7,0.36383794]
[1718717962705,6.24567,3389.2,3387.7,0.36383794]
[1718717962706,2.95082,3388.9,3387.7,0.36383794]
[1718717963007,0.595082,3388.8,3387.7,0.36383794]
[1718717963283,0.595082,3388.8,3387.6,0.55]
[1718717963284,2.95082,3388.9,3387.6,0.55]
[1718717963455,2.95082,3388.9,3387.5,0.55]
[1718717963990,3.29505,3389.2,3387.7,2.9005]
[1718717964303,3.29505,3389.2,3387.8,0.60902588]
[1718717964586,3.29505,3389.2,3387.8,0.55]
[1718717964882,3.29505,3389.2,3387.9,0.05902589]
[1718717965106,3.29505,3389.2,3387.7,2.9005]
[1718717965266,2.9508,3389.0,3387.7,2.9005]
[1718717965806,2.95082,3388.9,3387.7,2.9005]
[1718717965961,2.95081,3388.9,3387.7,2.9005]
[1718717966164,2.95107,3388.6,3387.7,2.9005]
[1718717966364,0.590197,3388.5,3387.7,2.9005]
[1718717966604,2.95107,3388.6,3387.7,2.9005]
[1718717967407,2.95117,3388.5,3387.7,2.9005]
[1718717967626,2.95129,3388.4,3387.2,3.26553607]
[1718717967760,2.95165,3388.0,3387.2,3.26553607]
[1718717967963,2.95133,3388.3,3387.0,3.0]
[1718717968209,2.95133,3388.3,3387.1,0.3]
[1718717968361,2.95133,3388.3,3386.8,3.0]
[1718717968873,2.95185,3387.8,3386.7,2.8944]
[1718717969257,2.9516,3388.0,3386.7,2.8944]
[1718717969494,0.51102665,3388.3,3386.8,0.05905001]
[1718717969695,3.0,3388.4,3386.7,4.22549009]
[1718717969696,5.95124,3388.4,3386.7,4.22549009]
[1718717969858,3.0,3388.4,3386.8,0.05903991]
[1718717970193,3.0,3388.4,3386.9,1.263253]
[1718717970194,0.624617,3388.4,3386.9,1.263253]
[1718717970396,2.95115,3388.5,3387.0,0.05903834]
[1718717970579,3.0,3388.4,3387.1,0.55]
[1718717970791,3.0,3388.4,3387.2,0.05903833]
[1718717970975,3.0,3388.4,3386.9,0.713253]
[1718717971173,0.64621767,3388.3,3387.0,0.41244224]
[1718717971503,2.95152,3388.1,3387.0,0.41244224]
[1718717971666,2.95143,3388.2,3387.0,0.41244224]
[1718717972201,2.95142,3388.2,3387.0,0.41244224]
[1718717972495,0.71086643,3388.1,3386.9,0.713253]
[1718717972665,3.66243643,3388.1,3386.9,0.713253]
[1718717973133,2.95161,3388.0,3386.9,0.713253]
[1718717973407,2.95177,3387.8,3386.7,3.19305009]
[1718717974587,2.95201,3387.6,3386.7,3.19305009]
[1718717974812,2.95178,3387.8,3386.7,3.19305009]
[1718717975013,0.590345,3387.7,3386.7,3.19305009]
[1718717975487,2.95213,3387.4,3386.1,10.2206]
[1718717976280,5.09901288,3387.3,3386.1,10.2206]
[1718717976477,2.95235,3387.2,3386.1,10.2206]
[1718717976716,2.9522,3387.3,3386.1,11.24266]
[1718717977030,2.95248,3387.0,3385.4,2.8212]
[1718717977180,2.95272,3386.7,3385.9,0.30096384]
[1718717977551,2.95272,3386.7,3385.4,2.8212]
[1718717977829,2.95272,3386.7,3385.5,0.28212]
[1718717978899,2.95265,3386.8,3385.5,0.28212]
[1718717979339,2.95255,3386.9,3385.5,0.28212]
[1718717979340,2.95272,3386.7,3385.5,0.28212]
[1718717979591,2.95255,3386.9,3385.4,0.29404072]
[1718717979592,3.115,3386.9,3385.4,0.29404072]
[1718717979800,2.95331,3386.1,3384.9,2.834]
[1718717980382,2.95325,3386.1,3384.9,2.834]
[1718717980824,2.9536,3385.7,3384.9,2.834]
[1718717981147,2.9536,3385.7,3384.3,2.834]
[1718717981419,2.95361,3385.7,3384.4,3.5682]
[1718717982788,2.95328,3386.1,3384.4,3.5682]
[1718717982789,2.95411,3385.2,3384.4,0.5682]
[1718717983106,2.8223,3385.6,3384.1,3.0]
[1718717983285,3.115,3385.8,3384.2,0.6029]
[1718717983486,5.9078,3385.4,3384.2,0.6029]
[1718717983720,2.95377,3385.5,3384.2,0.6029]
[1718717983938,2.95377,3385.5,3384.3,0.69258111]
[1718717984146,2.95387,3385.4,3384.3,0.69258111]
[1718717984283,2.95406,3385.2,3384.3,0.69258111]
[1718717984488,2.95376,3385.6,3384.3,0.69258111]
[1718717984686,2.95376,3385.6,3384.4,0.36925811]
[1718717984687,0.7270954,3385.5,3384.4,0.36925811]
[1718717984920,2.95393,3385.4,3384.4,0.36925811]
[1718717985222,0.7270954,3385.5,3384.4,0.36925811]
[1718717985649,3.6808654,3385.5,3384.4,0.36925811]
[1718717985810,2.95369,3385.6,3384.4,0.36925811]
[1718717986143,5.95341,3386.0,3384.5,0.05909258]
[1718717986365,2.95342,3385.9,3384.5,0.05909258]
[1718717986519,6.844203,3385.8,3384.5,0.05909258]
[1718717986919,2.95368,3385.7,3384.1,3.0]
[1718717987122,2.95396,3385.3,3384.1,3.0]
[1718717987433,0.590781,3385.2,3384.0,3.3229111]
[1718717988159,2.9543,3384.9,3384.0,3.3229111]
[1718717988445,2.95421,3385.0,3384.0,3.029]
[1718717991247,2.9536,3385.7,3384.1,0.05909567]
[1718717991452,2.95377,3385.5,3384.1,0.39082653]
[1718717991749,3.0,3385.4,3384.1,0.39082653]
[1718717992311,2.95395,3385.3,3384.1,0.33173086]
[1718717992541,2.95412,3385.1,3384.1,0.33173086]
[1718717992743,2.95412,3385.1,3384.0,3.029]
[1718717993045,2.95428,3385.0,3384.0,3.029]
[1718717993249,2.95432,3384.9,3384.0,3.029]
[1718717993431,2.95422,3385.0,3384.0,3.029]
[1718717993609,2.9543,3384.9,3384.0,3.029]
[1718717993809,2.9543,3384.9,3383.1,7.43]
[1718717993810,2.95457,3384.6,3383.1,7.43]
[1718717994020,2.95446,3384.8,3383.2,2.8878]
[1718717994021,2.95449,3384.7,3383.2,2.8878]
[1718717994315,0.886333,3384.6,3383.2,2.8878]
[1718717994624,0.886333,3384.6,3383.3,3.0]
[1718717994823,2.95449,3384.7,3383.4,0.61871888]
[1718717995347,2.95449,3384.7,3383.5,0.55]
[1718717995540,2.9543,3384.9,3383.2,2.8878]
[1718717995541,3.115,3384.9,3383.2,2.8878]
[1718717995745,2.95533,3383.8,3382.7,3.0403]
[1718717995935,2.95517,3383.9,3382.7,3.0403]
[1718717996662,2.9553,3383.8,3382.7,3.0403]
[1718717996817,2.95534,3383.7,3382.7,3.0403]
[1718717997015,2.95526,3383.8,3382.8,0.30403]
[1718717997218,7.43554,3384.7,3382.9,0.05912087]
[1718717997458,7.43554,3384.7,3383.0,0.66948724]
[1718717997459,3.7481,3384.6,3383.0,0.66948724]
[1718717997823,6.70273,3384.6,3383.1,0.05910893]
[1718717998032,2.95436,3384.9,3383.2,2.9776]
[1718717998219,5.80184,3385.5,3383.3,3.60910529]
[1718717998220,5.9544,3384.8,3383.3,3.60910529]
[1718717998547,2.95412,3385.1,3383.3,3.60910529]
[1718717998763,2.95412,3385.1,3383.4,0.65867053]
[1718717998764,3.26564,3385.1,3383.4,0.65867053]
[1718717998959,3.0,3385.0,3383.5,0.60909872]
[1718717999124,3.921969,3385.0,3383.6,0.42677693]
[1718717999434,3.921969,3385.0,3383.7,0.60909964]
[1718717999643,3.921969,3385.0,3383.8,0.05909965]
[1718717999837,0.921969,3385.0,3383.9,0.55]
[1718718000148,3.0,3385.2,3384.0,3.0269]
[1718718000349,2.95413,3385.1,3384.0,3.0269]
[1718718000548,3.0,3385.2,3384.0,3.0269]
[1718718000854,5.95403,3385.2,3384.0,3.0269]
[1718718001153,2.95445,3384.8,3384.0,3.0269]
[1718718001544,0.890798,3385.1,3384.0,3.0269]
[1718718001545,3.844918,3385.1,3384.0,3.0269]
[1718718001723,2.95422,3385.0,3384.0,3.0269]
[1718718001917,2.9543,3384.9,3384.0,3.0269]
[1718718002528,2.95466,3384.5,3383.6,0.42677693]
[1718718002834,2.9544,3384.8,3383.6,3.42677693]
[1718718003030,2.95447,3384.7,3383.7,0.64207769]
[1718718003245,0.9799138,3385.0,3383.7,0.701181]
[1718718003444,0.9799138,3385.0,3383.8,1.25628546]
[1718718003632,3.9341338,3385.0,3383.8,1.25628546]
[1718718003956,2.95422,3385.0,3383.8,1.25628546]
[1718718004172,2.9536,3385.7,3384.0,2.9354]
[1718718004328,2.9536,3385.7,3384.1,3.60908947]
[1718718004523,3.992506,3385.6,3384.2,0.65444895]
[1718718004721,2.95377,3385.5,3384.1,3.0]
[1718718004932,2.95365,3385.7,3384.2,0.60909301]
[1718718005154,5.95373,3385.6,3384.3,0.6544493]
[1718718005356,3.844335,3385.7,3384.3,0.71354108]
[1718718005524,2.95371,3385.6,3384.4,0.55]
[1718718005720,2.95384,3385.5,3384.1,3.0]
[1718718006093,2.95452,3384.7,3384.0,2.9354]
[1718718006354,2.95473,3384.4,3383.6,0.29095012]
[1718718006559,2.95473,3384.4,3383.5,3.0]
[1718718006773,2.95465,3384.5,3383.5,3.58106]
[1718718007840,2.95482,3384.3,3383.4,2.8106]
[1718718008180,2.95474,3384.4,3383.4,2.8106]
[1718718008482,2.95511,3384.0,3383.1,0.29666616]
[1718718008775,2.95511,3384.0,3382.9,2.7883]
[1718718008776,2.95525,3383.8,3382.9,2.7883]
[1718718008926,2.95492,3384.2,3382.9,2.7883]
[1718718009127,2.95492,3384.2,3383.0,0.27883]
[1718718009970,2.95526,3383.8,3382.9,2.7883]
[1718718010185,2.95536,3383.7,3382.9,2.7883]
[1718718010472,2.95544,3383.6,3382.9,2.7883]
[1718718010678,0.59107,3383.6,3382.9,2.7883]
[1718718010885,2.95536,3383.7,3382.9,2.7883]
[1718718011384,2.95536,3383.7,3382.0,12.0567741]
[1718718011385,3.115,3383.7,3382.0,0.0017741]